[Event "Titled Tuesday Blitz November 08 Late 2022"]
[White "Ter-Sahakyan, Samvel"]
[Black "Papasimakopoulos, Alexandros"]
[WhiteFideId "13302531"]
[BlackFideId "4244125"]
[WhiteElo "2584"]
[BlackElo "2365"]
[Result "0-1"]
[Round "11"]
[TimeControl "180+1"]
[Date "2022.11.09"]
[WhiteClock "0:00:01"]
[BlackClock "0:01:52"]

1. e4 {[%clk 0:03:00]}  e6 {[%clk 0:02:59]} 2. d4 {[%clk 0:03:01]}  d5 {[%clk 0:03:00]} 3. Nd2 {[%clk 0:03:00]}  Nf6 {[%clk 0:03:00]} 4. e5 {[%clk 0:03:00]}  Nfd7 {[%clk 0:03:01]} 5. Bd3 {[%clk 0:02:57]}  c5 {[%clk 0:03:02]} 6. c3 {[%clk 0:02:58]}  Nc6 {[%clk 0:03:02]} 7. Ne2 {[%clk 0:02:58]}  cxd4 {[%clk 0:03:03]} 8. cxd4 {[%clk 0:02:59]}  f6 {[%clk 0:03:04]} 9. exf6 {[%clk 0:02:59]}  Nxf6 {[%clk 0:03:05]} 10. O-O {[%clk 0:02:58]}  Bd6 {[%clk 0:03:05]} 11. Nf3 {[%clk 0:02:58]}  Qc7 {[%clk 0:03:06]} 12. Bg5 {[%clk 0:02:57]}  O-O {[%clk 0:03:06]} 13. Bh4 {[%clk 0:02:41]}  Nh5 {[%clk 0:03:06]} 14. Qc2 {[%clk 0:02:13]}  h6 {[%clk 0:03:06]} 15. Bh7+ {[%clk 0:02:03]}  Kh8 {[%clk 0:03:06]} 16. Bg6 {[%clk 0:02:04]}  Rxf3 {[%clk 0:03:07]} 17. Bxh5 {[%clk 0:02:03]}  Bxh2+ {[%clk 0:03:08]} 18. Kh1 {[%clk 0:02:03]}  Rf5 {[%clk 0:03:08]} 19. Bg6 {[%clk 0:02:00]}  Bd6 {[%clk 0:03:09]} 20. Bxf5 {[%clk 0:01:56]}  exf5 {[%clk 0:03:10]} 21. Rae1 {[%clk 0:01:43]}  Qf7 {[%clk 0:03:11]} 22. Bg3 {[%clk 0:01:34]}  Bb4 {[%clk 0:03:11]} 23. Rd1 {[%clk 0:01:17]}  Bd7 {[%clk 0:03:12]} 24. a3 {[%clk 0:01:10]}  Re8 {[%clk 0:03:13]} 25. Kg1 {[%clk 0:01:05]}  Ba5 {[%clk 0:03:13]} 26. b4 {[%clk 0:01:00]}  Bb6 {[%clk 0:03:13]} 27. Rfe1 {[%clk 0:00:57]}  Kg8 {[%clk 0:03:10]} 28. Qd2 {[%clk 0:00:45]}  Re4 {[%clk 0:03:08]} 29. f3 {[%clk 0:00:27]}  Nxd4 {[%clk 0:03:08]} 30. Bf2 {[%clk 0:00:26]}  Nxe2+ {[%clk 0:03:08]} 31. Rxe2 {[%clk 0:00:26]}  Rxe2 {[%clk 0:03:01]} 32. Qxe2 {[%clk 0:00:27]}  Bxf2+ {[%clk 0:03:00]} 33. Qxf2 {[%clk 0:00:27]}  a6 {[%clk 0:03:00]} 34. Qd4 {[%clk 0:00:27]}  Bc6 {[%clk 0:03:01]} 35. Re1 {[%clk 0:00:26]}  Qg6 {[%clk 0:02:53]} 36. Re7 {[%clk 0:00:25]}  Qg3 {[%clk 0:02:53]} 37. Qe5 {[%clk 0:00:21]}  f4 {[%clk 0:02:41]} 38. Qf5 {[%clk 0:00:13]}  d4 {[%clk 0:02:32]} 39. Qf7+ {[%clk 0:00:06]}  Kh8 {[%clk 0:02:28]} 40. Qf8+ {[%clk 0:00:06]}  Kh7 {[%clk 0:02:29]} 41. Qf5+ {[%clk 0:00:07]}  Kg8 {[%clk 0:02:30]} 42. Qf7+ {[%clk 0:00:03]}  Kh7 {[%clk 0:02:30]} 43. Qf5+ {[%clk 0:00:03]}  Qg6 {[%clk 0:02:27]} 44. Qxg6+ {[%clk 0:00:03]}  Kxg6 {[%clk 0:02:27]} 45. Kf2 {[%clk 0:00:04]}  Kf6 {[%clk 0:02:27]} 46. Re1 {[%clk 0:00:03]}  h5 {[%clk 0:02:17]} 47. Rh1 {[%clk 0:00:03]}  g6 {[%clk 0:02:18]} 48. Ke2 {[%clk 0:00:04]}  Bb5+ {[%clk 0:02:18]} 49. Kd2 {[%clk 0:00:04]}  Bc4 {[%clk 0:02:15]} 50. Re1 {[%clk 0:00:04]}  g5 {[%clk 0:02:07]} 51. Re4 {[%clk 0:00:04]}  Bf1 {[%clk 0:02:06]} 52. Ke1 {[%clk 0:00:01]}  Bxg2 {[%clk 0:01:59]} 53. Kf2 {[%clk 0:00:02]}  Bh3 {[%clk 0:01:55]} 54. Rxd4 {[%clk 0:00:02]}  Be6 {[%clk 0:01:54]} 55. Rd8 {[%clk 0:00:02]}  g4 {[%clk 0:01:53]} 56. fxg4 {[%clk 0:00:01]}  hxg4 {[%clk 0:01:54]} 57. Rb8 {[%clk 0:00:01]}  g3+ {[%clk 0:01:51]} 58. Kf3 {[%clk 0:00:01]}  Bd5+ {[%clk 0:01:51]} 59. Kxf4 {[%clk 0:00:01]}  g2 {[%clk 0:01:52]} 0-1


[Site "https://www.chess.com"]

[Event "Titled Tuesday Blitz November 08 Late 2022"]
[White "Thiel, Thomas"]
[Black "Tan, Ralph"]
[WhiteFideId "4615964"]
[BlackFideId "30966590"]
[WhiteElo "2233"]
[BlackElo "2059"]
[Result "0-1"]
[Round "11"]
[TimeControl "180+1"]
[Date "2022.11.09"]
[WhiteClock "0:00:25"]
[BlackClock "0:00:24"]

1. e4 {[%clk 0:03:00]}  e6 {[%clk 0:03:00]} 2. d4 {[%clk 0:02:59]}  d5 {[%clk 0:03:00]} 3. Nc3 {[%clk 0:02:57]}  Nf6 {[%clk 0:02:59]} 4. Bg5 {[%clk 0:02:56]}  Be7 {[%clk 0:02:59]} 5. e5 {[%clk 0:02:56]}  Nfd7 {[%clk 0:02:58]} 6. h4 {[%clk 0:02:56]}  h6 {[%clk 0:02:58]} 7. Bxe7 {[%clk 0:02:55]}  Qxe7 {[%clk 0:02:59]} 8. f4 {[%clk 0:02:54]}  a6 {[%clk 0:02:58]} 9. Nf3 {[%clk 0:02:54]}  c5 {[%clk 0:02:58]} 10. Ne2 {[%clk 0:02:48]}  Nc6 {[%clk 0:02:56]} 11. Qd2 {[%clk 0:02:46]}  b5 {[%clk 0:02:53]} 12. O-O-O {[%clk 0:02:43]}  b4 {[%clk 0:02:40]} 13. dxc5 {[%clk 0:02:23]}  Nxc5 {[%clk 0:02:37]} 14. Ned4 {[%clk 0:02:23]}  Nxd4 {[%clk 0:02:31]} 15. Qxd4 {[%clk 0:02:19]}  O-O {[%clk 0:02:23]} 16. Kb1 {[%clk 0:02:18]}  a5 {[%clk 0:02:14]} 17. g4 {[%clk 0:02:15]}  Ba6 {[%clk 0:01:50]} 18. Bd3 {[%clk 0:02:08]}  Bxd3 {[%clk 0:01:48]} 19. cxd3 {[%clk 0:02:09]}  a4 {[%clk 0:01:36]} 20. f5 {[%clk 0:02:05]}  Rfc8 {[%clk 0:01:30]} 21. f6 {[%clk 0:01:59]}  Qa7 {[%clk 0:01:17]} 22. fxg7 {[%clk 0:01:55]}  a3 {[%clk 0:01:09]} 23. b3 {[%clk 0:01:49]}  Nd7 {[%clk 0:00:54]} 24. Qxa7 {[%clk 0:01:45]}  Rxa7 {[%clk 0:00:53]} 25. g5 {[%clk 0:01:44]}  h5 {[%clk 0:00:53]} 26. Rc1 {[%clk 0:01:36]}  Rac7 {[%clk 0:00:52]} 27. Rxc7 {[%clk 0:01:34]}  Rxc7 {[%clk 0:00:53]} 28. Re1 {[%clk 0:01:03]}  Kxg7 {[%clk 0:00:50]} 29. Nd4 {[%clk 0:01:01]}  Rc3 {[%clk 0:00:47]} 30. Nc2 {[%clk 0:01:01]}  Rxd3 {[%clk 0:00:42]} 31. Nxb4 {[%clk 0:01:01]}  Rh3 {[%clk 0:00:41]} 32. Nc2 {[%clk 0:01:01]}  Rxh4 {[%clk 0:00:41]} 33. Nxa3 {[%clk 0:00:59]}  Rg4 {[%clk 0:00:37]} 34. Nb5 {[%clk 0:00:56]}  h4 {[%clk 0:00:37]} 35. a4 {[%clk 0:00:55]}  h3 {[%clk 0:00:37]} 36. Rh1 {[%clk 0:00:52]}  Rg3 {[%clk 0:00:34]} 37. Kb2 {[%clk 0:00:41]}  Nc5 {[%clk 0:00:33]} 38. Nd4 {[%clk 0:00:38]}  Rd3 {[%clk 0:00:26]} 39. b4 {[%clk 0:00:25]}  Nxa4+ {[%clk 0:00:24]} 0-1


[Site "https://www.chess.com"]

[Event "Titled Tuesday Blitz November 08 Late 2022"]
[White "Vlassov, Nikolai"]
[Black "Bogaudinov, Rushan"]
[WhiteFideId "4103360"]
[BlackFideId "4129288"]
[WhiteElo "2324"]
[BlackElo "1997"]
[Result "1-0"]
[Round "11"]
[TimeControl "180+1"]
[Date "2022.11.09"]
[WhiteClock "0:00:01"]
[BlackClock "0:00:02"]

1. e4 {[%clk 0:03:00]}  c5 {[%clk 0:02:58]} 2. c3 {[%clk 0:03:00]}  e6 {[%clk 0:02:57]} 3. d4 {[%clk 0:02:59]}  d5 {[%clk 0:02:57]} 4. exd5 {[%clk 0:02:58]}  Qxd5 {[%clk 0:02:57]} 5. Nf3 {[%clk 0:02:57]}  Nf6 {[%clk 0:02:57]} 6. a3 {[%clk 0:02:57]}  Nc6 {[%clk 0:02:45]} 7. Be3 {[%clk 0:02:56]}  cxd4 {[%clk 0:02:34]} 8. cxd4 {[%clk 0:02:57]}  Be7 {[%clk 0:02:33]} 9. Nc3 {[%clk 0:02:56]}  Qd8 {[%clk 0:02:33]} 10. Qc2 {[%clk 0:02:55]}  O-O {[%clk 0:02:30]} 11. Bd3 {[%clk 0:02:55]}  Bd7 {[%clk 0:02:16]} 12. O-O {[%clk 0:02:55]}  Rc8 {[%clk 0:02:16]} 13. Rad1 {[%clk 0:02:53]}  a6 {[%clk 0:02:02]} 14. Bg5 {[%clk 0:02:50]}  h6 {[%clk 0:02:01]} 15. Be3 {[%clk 0:02:48]}  b5 {[%clk 0:01:59]} 16. Qd2 {[%clk 0:02:47]}  Ng4 {[%clk 0:01:54]} 17. Bf4 {[%clk 0:02:45]}  b4 {[%clk 0:01:24]} 18. Ne4 {[%clk 0:02:19]}  Nxd4 {[%clk 0:00:50]} 19. Nxd4 {[%clk 0:02:12]}  e5 {[%clk 0:00:50]} 20. h3 {[%clk 0:02:08]}  exf4 {[%clk 0:00:46]} 21. hxg4 {[%clk 0:02:06]}  Bxg4 {[%clk 0:00:46]} 22. Be2 {[%clk 0:01:58]}  Bxe2 {[%clk 0:00:43]} 23. Qxe2 {[%clk 0:01:53]}  bxa3 {[%clk 0:00:37]} 24. Ne6 {[%clk 0:01:13]}  Qa5 {[%clk 0:00:22]} 25. Nxf8 {[%clk 0:01:11]}  Bxf8 {[%clk 0:00:19]} 26. bxa3 {[%clk 0:00:51]}  Qxa3 {[%clk 0:00:17]} 27. Qg4 {[%clk 0:00:45]}  Rc6 {[%clk 0:00:14]} 28. Rfe1 {[%clk 0:00:34]}  Rg6 {[%clk 0:00:11]} 29. Qxf4 {[%clk 0:00:31]}  Qb4 {[%clk 0:00:12]} 30. Qf3 {[%clk 0:00:20]}  a5 {[%clk 0:00:11]} 31. Rb1 {[%clk 0:00:17]}  Qc4 {[%clk 0:00:11]} 32. Ng3 {[%clk 0:00:15]}  Bb4 {[%clk 0:00:10]} 33. Re8+ {[%clk 0:00:13]}  Kh7 {[%clk 0:00:10]} 34. Qa8 {[%clk 0:00:11]}  Rf6 {[%clk 0:00:08]} 35. Rh8+ {[%clk 0:00:10]}  Kg6 {[%clk 0:00:08]} 36. Qe4+ {[%clk 0:00:07]}  Qxe4 {[%clk 0:00:08]} 37. Nxe4 {[%clk 0:00:08]}  Re6 {[%clk 0:00:07]} 38. f3 {[%clk 0:00:07]}  Rc6 {[%clk 0:00:06]} 39. Ra8 {[%clk 0:00:06]}  f5 {[%clk 0:00:06]} 40. Ng3 {[%clk 0:00:05]}  h5 {[%clk 0:00:06]} 41. Ne2 {[%clk 0:00:04]}  h4 {[%clk 0:00:05]} 42. Nf4+ {[%clk 0:00:04]}  Kg5 {[%clk 0:00:05]} 43. Nd3 {[%clk 0:00:04]}  Bc3 {[%clk 0:00:04]} 44. Rb5 {[%clk 0:00:03]}  g6 {[%clk 0:00:02]} 45. Kh2 {[%clk 0:00:03]}  Rd6 {[%clk 0:00:02]} 46. Nf2 {[%clk 0:00:01]} 1-0


[Site "https://www.chess.com"]

[Event "Titled Tuesday Blitz November 08 Late 2022"]
[White "Wirig, Anthony"]
[Black "Kim, Sergey"]
[WhiteFideId "615013"]
[BlackFideId "13700570"]
[WhiteElo "2487"]
[BlackElo "2589"]
[Result "0-1"]
[Round "11"]
[TimeControl "180+1"]
[Date "2022.11.09"]
[WhiteClock "0:00:44"]
[BlackClock "0:01:05"]

1. e4 {[%clk 0:03:00]}  e5 {[%clk 0:02:59]} 2. Nf3 {[%clk 0:03:00]}  Nc6 {[%clk 0:03:00]} 3. d4 {[%clk 0:03:00]}  exd4 {[%clk 0:02:59]} 4. Bc4 {[%clk 0:03:01]}  Nf6 {[%clk 0:02:58]} 5. O-O {[%clk 0:03:01]}  Nxe4 {[%clk 0:02:57]} 6. Re1 {[%clk 0:03:01]}  d5 {[%clk 0:02:57]} 7. Bxd5 {[%clk 0:03:02]}  Qxd5 {[%clk 0:02:57]} 8. Nc3 {[%clk 0:03:03]}  Qa5 {[%clk 0:02:58]} 9. Nxe4 {[%clk 0:03:02]}  Be6 {[%clk 0:02:58]} 10. Neg5 {[%clk 0:03:01]}  O-O-O {[%clk 0:02:58]} 11. Nxe6 {[%clk 0:03:02]}  fxe6 {[%clk 0:02:58]} 12. Rxe6 {[%clk 0:03:03]}  Be7 {[%clk 0:02:56]} 13. Qe2 {[%clk 0:02:55]}  Bf6 {[%clk 0:02:56]} 14. Bf4 {[%clk 0:02:47]}  Qd5 {[%clk 0:02:51]} 15. a3 {[%clk 0:02:42]}  d3 {[%clk 0:02:50]} 16. cxd3 {[%clk 0:02:43]}  Qxd3 {[%clk 0:02:50]} 17. Re1 {[%clk 0:02:32]}  Qxe2 {[%clk 0:02:49]} 18. R6xe2 {[%clk 0:02:33]}  Rd3 {[%clk 0:02:43]} 19. h4 {[%clk 0:02:29]}  Rb3 {[%clk 0:02:40]} 20. Bc1 {[%clk 0:02:29]}  h6 {[%clk 0:02:36]} 21. h5 {[%clk 0:02:27]}  Rd8 {[%clk 0:02:33]} 22. Kh2 {[%clk 0:02:18]}  Nd4 {[%clk 0:02:26]} 23. Nxd4 {[%clk 0:02:17]}  Rxd4 {[%clk 0:02:26]} 24. f4 {[%clk 0:02:09]}  Rd5 {[%clk 0:02:20]} 25. g4 {[%clk 0:02:06]}  Rdd3 {[%clk 0:02:20]} 26. Re3 {[%clk 0:01:45]}  Rxe3 {[%clk 0:02:14]} 27. Bxe3 {[%clk 0:01:46]}  Rxb2+ {[%clk 0:02:07]} 28. Kg3 {[%clk 0:01:46]}  Rb3 {[%clk 0:02:08]} 29. Kg2 {[%clk 0:01:36]}  Rb2+ {[%clk 0:01:58]} 30. Kf3 {[%clk 0:01:36]}  Rb3 {[%clk 0:01:58]} 31. Ke4 {[%clk 0:01:35]}  Rxa3 {[%clk 0:01:55]} 32. g5 {[%clk 0:01:35]}  Bc3 {[%clk 0:01:41]} 33. Rg1 {[%clk 0:01:25]}  b5 {[%clk 0:01:36]} 34. gxh6 {[%clk 0:01:20]}  gxh6 {[%clk 0:01:36]} 35. Rg6 {[%clk 0:01:21]}  b4 {[%clk 0:01:34]} 36. f5 {[%clk 0:01:14]}  b3 {[%clk 0:01:31]} 37. Rg8+ {[%clk 0:00:55]}  Kb7 {[%clk 0:01:27]} 38. Rg1 {[%clk 0:00:55]}  b2 {[%clk 0:01:25]} 39. Kd3 {[%clk 0:00:56]}  Ra1 {[%clk 0:01:20]} 40. Kc2 {[%clk 0:00:55]}  Bf6 {[%clk 0:01:12]} 41. Rb1 {[%clk 0:00:53]}  a5 {[%clk 0:01:11]} 42. Bxh6 {[%clk 0:00:53]}  a4 {[%clk 0:01:10]} 43. Bg5 {[%clk 0:00:44]}  Rxb1 {[%clk 0:01:08]} 44. Bxf6 {[%clk 0:00:44]}  Rh1 {[%clk 0:01:05]} 0-1


[Site "https://www.chess.com"]

[Event "Titled Tuesday Blitz November 08 Late 2022"]
[White "Yuan, Qingyu"]
[Black "Postnikov, Daniil"]
[WhiteFideId "8609772"]
[BlackFideId "4166329"]
[WhiteElo "2359"]
[BlackElo "2261"]
[Result "0-1"]
[Round "11"]
[TimeControl "180+1"]
[Date "2022.11.09"]
[WhiteClock "0:00:02"]
[BlackClock "0:00:05"]

1. e4 {[%clk 0:02:57]}  c5 {[%clk 0:02:59]} 2. Nf3 {[%clk 0:02:56]}  e6 {[%clk 0:02:59]} 3. c4 {[%clk 0:02:55]}  Nc6 {[%clk 0:02:57]} 4. Nc3 {[%clk 0:02:54]}  Nf6 {[%clk 0:02:53]} 5. Be2 {[%clk 0:02:45]}  b6 {[%clk 0:02:24]} 6. O-O {[%clk 0:02:41]}  Bb7 {[%clk 0:02:24]} 7. e5 {[%clk 0:02:26]}  Ng4 {[%clk 0:02:19]} 8. d4 {[%clk 0:02:26]}  cxd4 {[%clk 0:02:16]} 9. Nxd4 {[%clk 0:02:26]}  Ngxe5 {[%clk 0:01:54]} 10. Ndb5 {[%clk 0:02:19]}  Qb8 {[%clk 0:01:47]} 11. Ne4 {[%clk 0:02:13]}  Be7 {[%clk 0:01:26]} 12. Nbd6+ {[%clk 0:02:08]}  Kf8 {[%clk 0:01:26]} 13. f4 {[%clk 0:02:03]}  Ng6 {[%clk 0:01:18]} 14. f5 {[%clk 0:02:03]}  Nge5 {[%clk 0:01:16]} 15. f6 {[%clk 0:01:39]}  Bxf6 {[%clk 0:01:16]} 16. Nxf6 {[%clk 0:01:36]}  gxf6 {[%clk 0:01:17]} 17. Rxf6 {[%clk 0:01:36]}  Rg8 {[%clk 0:01:17]} 18. Nxb7 {[%clk 0:01:14]}  Qxb7 {[%clk 0:01:11]} 19. Qd6+ {[%clk 0:00:53]}  Ke8 {[%clk 0:01:04]} 20. Bf4 {[%clk 0:00:47]}  Nd4 {[%clk 0:00:36]} 21. Bf1 {[%clk 0:00:47]}  Ndf3+ {[%clk 0:00:34]} 22. Kh1 {[%clk 0:00:47]}  Ng4 {[%clk 0:00:35]} 23. Bg3 {[%clk 0:00:35]}  Nxf6 {[%clk 0:00:23]} 24. gxf3 {[%clk 0:00:35]}  Rc8 {[%clk 0:00:19]} 25. Bg2 {[%clk 0:00:28]}  Rxc4 {[%clk 0:00:18]} 26. f4 {[%clk 0:00:27]}  Ne4 {[%clk 0:00:17]} 27. Qd3 {[%clk 0:00:22]}  d5 {[%clk 0:00:16]} 28. f5 {[%clk 0:00:18]}  Rxg3 {[%clk 0:00:15]} 29. Qe2 {[%clk 0:00:16]}  Rg8 {[%clk 0:00:13]} 30. Rf1 {[%clk 0:00:14]}  Qe7 {[%clk 0:00:10]} 31. fxe6 {[%clk 0:00:13]}  fxe6 {[%clk 0:00:11]} 32. b3 {[%clk 0:00:12]}  Rc3 {[%clk 0:00:08]} 33. Qh5+ {[%clk 0:00:09]}  Rg6 {[%clk 0:00:08]} 34. Bh3 {[%clk 0:00:08]}  Qg5 {[%clk 0:00:05]} 35. Qd1 {[%clk 0:00:03]}  Qg1+ {[%clk 0:00:04]} 36. Rxg1 {[%clk 0:00:02]}  Nf2# {[%clk 0:00:05]} 0-1


[Site "https://www.chess.com"]

[Event "Titled Tuesday Blitz November 08 Late 2022"]
[White "Zhu, Jiner"]
[Black "Becerra, Juan David"]
[WhiteFideId "8608059"]
[BlackFideId "4404998"]
[WhiteElo "2384"]
[BlackElo "2281"]
[Result "1/2-1/2"]
[Round "11"]
[TimeControl "180+1"]
[Date "2022.11.09"]
[WhiteClock "0:00:30"]
[BlackClock "0:00:35"]

1. c4 {[%clk 0:03:00]}  e6 {[%clk 0:02:56]} 2. Nc3 {[%clk 0:03:00]}  d5 {[%clk 0:02:56]} 3. d4 {[%clk 0:03:00]}  c6 {[%clk 0:02:55]} 4. Nf3 {[%clk 0:02:58]}  Nf6 {[%clk 0:02:55]} 5. e3 {[%clk 0:02:58]}  Nbd7 {[%clk 0:02:55]} 6. Bd3 {[%clk 0:02:57]}  dxc4 {[%clk 0:02:55]} 7. Bxc4 {[%clk 0:02:58]}  Bd6 {[%clk 0:02:56]} 8. O-O {[%clk 0:02:46]}  O-O {[%clk 0:02:55]} 9. a4 {[%clk 0:02:43]}  a5 {[%clk 0:02:54]} 10. e4 {[%clk 0:02:42]}  e5 {[%clk 0:02:54]} 11. h3 {[%clk 0:02:36]}  Qe7 {[%clk 0:02:53]} 12. Re1 {[%clk 0:02:34]}  exd4 {[%clk 0:02:43]} 13. Nxd4 {[%clk 0:02:35]}  Ne5 {[%clk 0:02:38]} 14. Bf1 {[%clk 0:02:31]}  Rd8 {[%clk 0:02:36]} 15. Qc2 {[%clk 0:02:25]}  Bb4 {[%clk 0:02:26]} 16. Be3 {[%clk 0:02:22]}  Bxh3 {[%clk 0:02:15]} 17. f4 {[%clk 0:02:07]}  Neg4 {[%clk 0:02:13]} 18. Nf5 {[%clk 0:02:07]}  Qc7 {[%clk 0:01:51]} 19. gxh3 {[%clk 0:01:58]}  Nxe3 {[%clk 0:01:51]} 20. Nxe3 {[%clk 0:01:58]}  Qxf4 {[%clk 0:01:48]} 21. Bg2 {[%clk 0:01:52]}  Rd4 {[%clk 0:01:28]} 22. Qf2 {[%clk 0:01:45]}  Qxf2+ {[%clk 0:01:27]} 23. Kxf2 {[%clk 0:01:46]}  Bxc3 {[%clk 0:01:26]} 24. bxc3 {[%clk 0:01:47]}  Nxe4+ {[%clk 0:01:26]} 25. Kg1 {[%clk 0:01:44]}  Nxc3 {[%clk 0:01:25]} 26. Nf5 {[%clk 0:01:39]}  Rd2 {[%clk 0:01:24]} 27. Re7 {[%clk 0:01:34]}  Ne2+ {[%clk 0:01:16]} 28. Kh1 {[%clk 0:01:34]}  Nf4 {[%clk 0:01:16]} 29. Bf1 {[%clk 0:01:27]}  Rb8 {[%clk 0:01:09]} 30. Bc4 {[%clk 0:01:19]}  Nd5 {[%clk 0:01:07]} 31. Rd7 {[%clk 0:01:15]}  Rf2 {[%clk 0:00:52]} 32. Nd6 {[%clk 0:01:00]}  Nb6 {[%clk 0:00:44]} 33. Bxf7+ {[%clk 0:00:56]}  Kf8 {[%clk 0:00:44]} 34. Rc7 {[%clk 0:00:53]}  Na8 {[%clk 0:00:44]} 35. Rd7 {[%clk 0:00:36]}  Nb6 {[%clk 0:00:43]} 36. Rc7 {[%clk 0:00:34]}  Na8 {[%clk 0:00:37]} 37. Rd7 {[%clk 0:00:30]}  Nb6 {[%clk 0:00:35]} 1/2-1/2


[Site "https://www.chess.com"]